bitfinex/quotes_BTCUSD_20251212
["timestamp","ask_amount","ask_price","bid_price","bid_amount"]
[1765516193819,0.68349924,92475.0,92427.0,0.01081934]
[1765516193820,0.21635889,92439.0,92427.0,0.01081934]
[1765516193979,0.21635889,92439.0,92421.0,0.01082005]
[1765516193980,0.21638932,92426.0,92421.0,0.01082005]
[1765516194173,0.0108197,92424.0,92420.0,0.01082016]
[1765516194340,0.04459451,92427.0,92421.0,0.01082005]
[1765516194539,0.01081946,92426.0,92422.0,0.01081993]
[1765516194744,0.01196,92428.0,92424.0,0.0108197]
[1765516194949,0.23916572,92428.0,92424.0,0.00038888]
[1765516195152,0.01081934,92427.0,92424.0,0.00038888]
[1765516195698,0.24857894,92426.0,92424.0,0.00038888]
[1765516195900,0.24857894,92426.0,92424.0,0.00238888]
[1765516196269,0.27166894,92426.0,92424.0,0.00238888]
[1765516196589,0.27166894,92426.0,92424.0,0.00538888]
[1765516197136,0.27166894,92426.0,92424.0,0.00038888]
[1765516197336,0.24857894,92426.0,92424.0,0.00038888]
[1765516197584,0.03459227,92425.0,92424.0,0.00338888]
[1765516197740,0.03459227,92425.0,92424.0,0.00038888]
[1765516197942,0.03459227,92425.0,92424.0,0.00238888]
[1765516198138,0.03459227,92425.0,92424.0,0.00438888]
[1765516198459,0.05768227,92425.0,92424.0,0.00238888]
[1765516198753,0.05768227,92425.0,92424.0,0.00438888]
[1765516198991,0.03459227,92425.0,92424.0,0.00438888]
[1765516199341,0.03459227,92425.0,92424.0,0.00238888]
[1765516199342,0.05000227,92425.0,92424.0,0.00238888]
[1765516199542,0.07409227,92425.0,92424.0,0.00538888]
[1765516199964,0.05100227,92425.0,92424.0,0.00538888]
[1765516200490,0.03559227,92425.0,92424.0,0.00538888]
[1765516201363,0.08570603,92425.0,92424.0,0.00538888]
[1765516201566,0.13572442,92425.0,92424.0,0.00538888]
[1765516202334,0.13472442,92425.0,92424.0,0.00238888]
[1765516202647,0.13572442,92425.0,92424.0,0.00538888]
[1765516203479,0.13572442,92425.0,92424.0,0.00338888]
[1765516203682,0.13572442,92425.0,92424.0,0.00638888]
[1765516203683,0.13672442,92425.0,92424.0,0.00638888]
[1765516203836,0.13672442,92425.0,92410.0,0.0004]
[1765516203837,0.26101896,92411.0,92410.0,0.0004]
[1765516204038,0.35464022,92411.0,92410.0,0.00050097]
[1765516204239,0.37773022,92411.0,92410.0,0.00050097]
[1765516206568,0.37773022,92411.0,92410.0,0.00250097]
[1765516206774,0.38673022,92411.0,92410.0,0.00234465]
[1765516206978,0.47205777,92411.0,92410.0,0.00234465]
[1765516207187,0.47905777,92411.0,92410.0,0.00334465]
[1765516214854,0.39373022,92411.0,92410.0,0.00334465]
[1765516217251,0.68443022,92411.0,92410.0,0.00334465]
[1765516218604,0.68876385,92411.0,92410.0,0.00334465]
[1765516219422,0.68876385,92411.0,92390.0,0.0004]
[1765516219423,0.60176077,92401.0,92390.0,0.0004]
[1765516219625,0.73578529,92401.0,92390.0,0.0004]
[1765516220473,0.98378529,92401.0,92390.0,0.0004]
[1765516221166,0.99078529,92401.0,92390.0,0.0004]
[1765516221651,1.00178529,92401.0,92390.0,0.0004]
[1765516222075,0.99478529,92401.0,92390.0,0.0004]
[1765516222506,1.00178529,92401.0,92390.0,0.0004]
[1765516223279,0.6017842,92391.0,92390.0,0.0004]
[1765516223485,0.72504361,92391.0,92390.0,0.00047999]
[1765516223728,0.74819361,92391.0,92390.0,0.00047999]
[1765516223938,0.75252823,92391.0,92390.0,0.00047999]
[1765516224336,0.76152823,92391.0,92390.0,0.00047999]
[1765516225591,0.76752823,92391.0,92390.0,0.00047999]
[1765516225930,0.68353882,92391.0,92390.0,0.00105646]
[1765516226774,0.68353882,92391.0,92380.0,0.0004]
[1765516226775,0.21649473,92381.0,92380.0,0.0004]
[1765516226976,0.59151435,92381.0,92380.0,0.0004]
[1765516227170,0.59151435,92381.0,92370.0,0.0004]
[1765516227171,0.31113107,92371.0,92370.0,0.0004]
[1765516227393,0.35637107,92371.0,92370.0,0.0004]
[1765516227584,0.37952107,92371.0,92370.0,0.0004]
[1765516228363,0.67022107,92371.0,92370.0,0.0004]
[1765516229064,0.67622107,92371.0,92370.0,0.0004]
[1765516229263,0.78072869,92371.0,92370.0,0.0004]
[1765516229690,0.78772869,92371.0,92370.0,0.0004]
[1765516230039,0.78972869,92371.0,92370.0,0.0004]
[1765516230148,0.78234156,92371.0,92370.0,0.0004]
[1765516230547,0.79334156,92371.0,92370.0,0.0004]
[1765516231834,0.80034156,92371.0,92370.0,0.0004]
[1765516232237,0.80034156,92371.0,92336.0,0.01083001]
[1765516232238,0.31117796,92351.0,92336.0,0.01083001]
[1765516232436,0.31117796,92351.0,92337.0,0.01082989]
[1765516232437,0.41553809,92351.0,92337.0,0.01082989]
[1765516232652,0.43868809,92351.0,92337.0,0.01082989]
[1765516232886,0.43868809,92351.0,92336.0,0.01083001]
[1765516233461,0.4407384,92351.0,92336.0,0.01083001]
[1765516233648,0.38079827,92351.0,92336.0,0.01083001]
[1765516234402,0.38079827,92351.0,92338.0,0.01082977]
[1765516234761,0.38079827,92351.0,92331.0,0.02198059]
[1765516234963,0.38079827,92351.0,92334.0,0.01083024]
[1765516235179,0.38079827,92351.0,92333.0,0.01083036]
[1765516235398,0.38079827,92351.0,92334.0,0.01083024]
[1765516236587,0.38079827,92351.0,92339.0,0.01082966]
[1765516236955,0.38079827,92351.0,92338.0,0.01082977]
[1765516237648,0.38079827,92351.0,92350.0,0.00155357]
[1765516245589,0.00205031,92351.0,92350.0,0.04129357]
[1765516245909,0.00205031,92351.0,92350.0,0.06831695]
[1765516246528,0.04085031,92351.0,92350.0,0.00155357]
[1765516246842,0.14640834,92351.0,92350.0,0.00155357]
[1765516247304,0.14540834,92351.0,92350.0,0.00155357]
[1765516247510,0.14640834,92351.0,92350.0,0.00155357]
[1765516247733,0.14540834,92351.0,92350.0,0.00155357]
[1765516248077,0.16148834,92351.0,92350.0,0.00155357]
[1765516248279,0.16248834,92351.0,92350.0,0.00155357]
[1765516248453,0.16348834,92351.0,92350.0,0.00255357]
[1765516250043,0.13059545,92351.0,92350.0,0.00255357]
[1765516250448,0.11351545,92351.0,92350.0,0.00255357]
[1765516250654,0.10352482,92351.0,92350.0,0.00255357]
[1765516251534,0.12981645,92351.0,92350.0,0.00255357]
[1765516251960,0.15354321,92351.0,92350.0,0.00255357]
[1765516252304,0.26646144,92351.0,92350.0,0.00255357]
[1765516252879,0.26546144,92351.0,92350.0,0.00155357]
[1765516253142,0.23839081,92351.0,92350.0,0.00155357]
[1765516253469,0.23739081,92351.0,92350.0,0.00155357]
[1765516253668,0.24339081,92351.0,92350.0,0.00155357]
[1765516254323,0.25339081,92351.0,92350.0,0.00155357]
[1765516257373,0.23631081,92351.0,92350.0,0.00155357]
[1765516257580,0.16754321,92351.0,92350.0,0.00155357]
[1765516257820,0.19461384,92351.0,92350.0,0.00155357]
[1765516258407,0.20544396,92351.0,92350.0,0.00155357]
[1765516258846,0.18836396,92351.0,92350.0,0.00155357]
[1765516259062,0.13834557,92351.0,92350.0,0.00155357]
[1765516259207,0.01605031,92351.0,92350.0,0.00155357]
[1765516259613,0.05585031,92351.0,92350.0,0.00155357]
[1765516259882,0.20992853,92351.0,92350.0,0.00155357]
[1765516260330,0.01605031,92351.0,92350.0,0.01725357]
[1765516260540,0.01605031,92351.0,92350.0,0.06806695]
[1765516260931,0.01605031,92351.0,92350.0,0.10663563]
[1765516261393,0.00605031,92351.0,92350.0,0.06806695]
[1765516261660,5.031e-05,92351.0,92350.0,0.06806695]
[1765516261886,0.00105031,92351.0,92350.0,0.06906695]
[1765516262859,0.00105031,92351.0,92350.0,0.35976695]
[1765516263071,0.01082415,92386.0,92381.0,0.01082473]
[1765516263478,0.01082379,92389.0,92382.0,0.227317]
[1765516263681,0.01082391,92388.0,92384.0,0.01082438]
[1765516263882,0.01082415,92386.0,92382.0,0.01082461]
[1765516264132,0.0108245,92383.0,92380.0,0.01082485]
[1765516264341,0.01082415,92386.0,92383.0,0.0108245]
[1765516264542,0.01082403,92387.0,92383.0,0.0108245]
[1765516264694,0.03447403,92387.0,92383.0,0.0108245]
[1765516265127,0.001,92386.0,92383.0,0.0108245]
[1765516265503,0.01082415,92386.0,92383.0,0.0108245]
[1765516265890,0.01082415,92386.0,92383.0,0.0128245]
[1765516267111,0.01082415,92386.0,92383.0,0.0108245]
[1765516267312,0.05541842,92388.0,92383.0,0.0108245]
[1765516267313,0.05541842,92388.0,92385.0,0.01082426]
[1765516267542,0.02316344,92392.0,92389.0,0.01082379]
[1765516268102,0.22729114,92393.0,92389.0,0.01082379]
[1765516268103,0.01082333,92393.0,92390.0,0.01082368]
[1765516268301,0.01082379,92389.0,92386.0,0.01093]
[1765516268611,0.04459451,92388.0,92387.0,0.01082403]
[1765516268984,0.04459451,92388.0,92386.0,0.01082415]
[1765516270377,0.06824451,92388.0,92386.0,0.002]
[1765516270810,0.04559451,92388.0,92385.0,0.01082426]
[1765516271255,0.04659451,92388.0,92386.0,0.002]
[1765516271778,0.04459451,92388.0,92385.0,0.22730883]
[1765516271984,0.04659451,92388.0,92385.0,0.22930883]
[1765516272188,0.04659451,92388.0,92385.0,0.01282426]
[1765516272389,0.07024451,92388.0,92385.0,0.01282426]
[1765516272661,0.07024451,92388.0,92385.0,0.22930893]
[1765516272839,0.01615,92386.0,92385.0,0.002]
[1765516273242,0.01615,92386.0,92383.0,0.21648795]
[1765516274125,0.04459451,92387.0,92385.0,0.21648536]
[1765516274344,0.001,92386.0,92385.0,0.21848536]
[1765516274663,0.002,92386.0,92385.0,0.21848536]
[1765516274890,0.001,92386.0,92385.0,0.21648536]
[1765516275314,0.002,92386.0,92385.0,0.21648536]
[1765516276217,0.001,92386.0,92385.0,0.26660536]
[1765516276416,0.22726077,92405.0,92401.0,0.01082239]
[1765516276617,0.01082204,92404.0,92401.0,0.01082239]
[1765516276815,0.01082204,92404.0,92399.0,0.21645166]
[1765516276816,0.2272656,92403.0,92399.0,0.01082262]
[1765516277178,0.22727073,92401.0,92398.0,0.01093]
[1765516277374,0.01082262,92399.0,92395.0,0.01082309]
[1765516277602,0.01082274,92398.0,92395.0,0.01082309]
[1765516277805,0.01082274,92398.0,92388.0,0.21647668]
[1765516277806,0.01082333,92393.0,92388.0,0.01082391]
[1765516278007,0.0162,92396.0,92389.0,0.21647598]
[1765516278212,0.01082297,92396.0,92391.0,0.22729458]
[1765516278435,0.26105221,92397.0,92391.0,0.22729458]
[1765516278436,0.04459451,92397.0,92394.0,0.01082321]
[1765516278848,0.05541737,92397.0,92394.0,0.01082321]
[1765516279256,0.01082297,92396.0,92393.0,0.01082333]
[1765516279390,0.01082297,92396.0,92392.0,0.01082344]
[1765516279593,0.01082309,92395.0,92392.0,0.01082344]
[1765516279818,0.001,92393.0,92392.0,0.01082344]
[1765516280194,0.01082321,92394.0,92390.0,0.01082368]
[1765516280395,0.01082297,92396.0,92392.0,0.01082344]
[1765516280709,0.01182297,92396.0,92393.0,0.01082333]
[1765516281130,0.01082297,92396.0,92393.0,0.01082333]
[1765516281305,0.001,92394.0,92392.0,0.01082344]
[1765516282564,0.05541737,92397.0,92394.0,0.01082321]
[1765516282971,0.002,92396.0,92395.0,0.21646192]
[1765516283171,0.001,92396.0,92395.0,0.21646192]
[1765516283496,0.04459451,92397.0,92395.0,0.21646192]
[1765516283687,0.04559451,92397.0,92395.0,0.21646192]
[1765516284129,0.001,92396.0,92395.0,0.21646192]
[1765516284333,0.001,92396.0,92394.0,0.01082321]
[1765516284508,0.001,92396.0,92395.0,0.001]
[1765516285699,0.04559451,92397.0,92394.0,0.01082321]
[1765516285954,0.04459451,92397.0,92394.0,0.01082321]
[1765516286159,0.001,92396.0,92394.0,0.01282321]
[1765516286383,0.002,92396.0,92394.0,0.01282321]
[1765516286563,0.04459451,92397.0,92394.0,0.01082321]
[1765516286970,0.04659451,92397.0,92394.0,0.01282321]
[1765516287180,0.04559451,92397.0,92394.0,0.01282321]
[1765516287656,0.001,92396.0,92394.0,0.01282321]
[1765516288708,0.001,92396.0,92394.0,0.01082321]
[1765516288949,0.04459451,92397.0,92394.0,0.01082321]
[1765516289178,0.001,92396.0,92394.0,0.01282321]
[1765516289805,0.001,92396.0,92394.0,0.01082321]
[1765516290220,0.001,92396.0,92394.0,0.01282321]
[1765516290623,0.001,92396.0,92394.0,0.01082321]
[1765516292090,0.002,92396.0,92394.0,0.01282321]
[1765516292288,0.002,92396.0,92394.0,0.002]
[1765516295568,0.25547192,92395.0,92394.0,0.002]
[1765516295795,0.26708568,92395.0,92394.0,0.002]
[1765516296477,0.26708568,92395.0,92382.0,0.00023063]
[1765516296478,0.04459451,92385.0,92382.0,0.01105524]
[1765516296687,0.00621,92383.0,92382.0,0.01105524]
[1765516297036,0.04459451,92385.0,92383.0,0.21649004]
[1765516297236,0.01082403,92387.0,92383.0,0.22731454]
[1765516297988,0.03363403,92387.0,92383.0,0.22731454]
[1765516298189,0.02281,92386.0,92383.0,0.22731454]
[1765516298393,0.001,92385.0,92383.0,0.22731454]
[1765516298793,0.02281,92386.0,92383.0,0.22731454]
[1765516298956,0.02281,92386.0,92383.0,0.0108245]
[1765516299155,0.02281,92386.0,92383.0,0.23031422]
[1765516299156,0.10736006,92386.0,92383.0,0.23031422]
[1765516299378,0.001,92387.0,92384.0,0.01082438]
[1765516299578,0.001,92385.0,92384.0,0.01082438]
[1765516299821,0.001,92387.0,92384.0,0.01082438]
[1765516300023,0.001,92386.0,92384.0,0.01082438]
[1765516300354,0.01082391,92388.0,92384.0,0.01082438]
[1765516300903,0.01229,92389.0,92385.0,0.22730962]
[1765516301305,0.01082368,92390.0,92385.0,0.25080962]
[1765516301520,0.001,92386.0,92385.0,0.22730962]
[1765516301942,0.01082344,92392.0,92387.0,0.01082403]
[1765516302260,0.04559451,92389.0,92387.0,0.01082403]
[1765516302408,0.04659451,92389.0,92387.0,0.01082403]
[1765516302611,0.04559451,92389.0,92387.0,0.01082403]
[1765516302810,0.04459451,92389.0,92387.0,0.01082403]
[1765516303247,0.04459451,92389.0,92387.0,0.01382403]
[1765516303428,0.02281,92388.0,92387.0,0.003]
[1765516304617,0.02281,92388.0,92385.0,0.01082426]
[1765516305014,0.02381,92388.0,92387.0,0.003]
[1765516305445,0.02381,92388.0,92385.0,0.01082426]
[1765516305588,0.001,92388.0,92385.0,0.01082426]
[1765516306133,0.002,92388.0,92387.0,0.003]
[1765516306358,0.001,92388.0,92387.0,0.003]
[1765516306469,0.001,92388.0,92387.0,0.21948067]
[1765516306674,0.002,92388.0,92387.0,0.21948067]
[1765516307612,0.001,92388.0,92387.0,0.21648067]
[1765516307935,0.002,92388.0,92385.0,0.01382426]
[1765516308300,0.01082368,92390.0,92386.0,0.01082415]
[1765516308688,0.002,92388.0,92387.0,0.003]
[1765516308958,0.001,92388.0,92387.0,0.003]
[1765516309148,0.03428368,92390.0,92386.0,0.01082415]
[1765516309358,0.001,92388.0,92386.0,0.01082415]
[1765516309560,0.001,92388.0,92386.0,0.01382415]
[1765516309762,0.01182368,92390.0,92386.0,0.01382415]
[1765516310171,0.03528368,92390.0,92386.0,0.01382415]
[1765516310331,0.001,92388.0,92387.0,0.01082403]
[1765516310945,0.001,92388.0,92387.0,0.2273047]
[1765516311532,0.02346,92390.0,92387.0,0.2273047]
[1765516311699,0.001,92388.0,92387.0,0.2273047]
[1765516312110,0.02346,92390.0,92387.0,0.2273047]
[1765516312411,0.002,92388.0,92387.0,0.2303047]
[1765516313155,0.001,92388.0,92387.0,0.2669847]
[1765516313290,0.001,92388.0,92387.0,0.2840647]
[1765516314449,0.001,92388.0,92387.0,0.2870647]
[1765516314959,0.001,92388.0,92387.0,0.2840647]
[1765516315659,0.001,92388.0,92387.0,0.32278541]
[1765516315816,0.002,92388.0,92387.0,0.32578541]
[1765516320757,0.002,92388.0,92387.0,0.2870647]
[1765516320963,0.002,92388.0,92387.0,0.33019268]
[1765516321662,0.001,92388.0,92387.0,0.32719268]
[1765516321978,0.0108211,92412.0,92404.0,0.21644084]
[1765516322378,0.0108211,92412.0,92404.0,0.23978084]
[1765516322512,0.0108211,92412.0,92404.0,0.25612084]
[1765516322934,0.01082098,92413.0,92404.0,0.25612084]
[1765516323565,0.02233087,92414.0,92404.0,0.25812084]
[1765516323566,0.00111676,92405.0,92404.0,0.25812084]
[1765516324546,0.00211676,92405.0,92404.0,0.25812084]
[1765516326874,0.00211676,92405.0,92404.0,0.21844084]
[1765516332429,0.00211676,92405.0,92404.0,0.24178084]
[1765516334054,0.00211676,92405.0,92404.0,0.21844084]
[1765516335005,0.07629052,92405.0,92404.0,0.002]
[1765516335202,0.15880797,92405.0,92404.0,0.002]
[1765516335700,0.21649004,92383.0,92377.0,0.02702338]
[1765516335906,0.21649004,92383.0,92378.0,0.01082508]
[1765516335907,0.22800004,92383.0,92378.0,0.01082508]
[1765516336212,0.01151,92383.0,92380.0,0.01082485]
[1765516336392,0.01082426,92385.0,92382.0,0.01105524]
[1765516336796,0.001,92383.0,92382.0,0.01305524]
[1765516337558,0.01082426,92385.0,92382.0,0.01105524]
[1765516337910,0.001,92383.0,92382.0,0.01105524]
[1765516338707,0.01182426,92385.0,92382.0,0.01305524]
[1765516338928,0.002,92385.0,92383.0,0.0227]
[1765516339269,0.01082426,92385.0,92382.0,0.01105524]
[1765516339473,0.001,92383.0,92382.0,0.01305524]
[1765516339652,0.002,92383.0,92382.0,0.01305524]
[1765516340092,0.001,92383.0,92382.0,0.00023063]
[1765516340885,0.01182426,92385.0,92383.0,0.002]
[1765516341086,0.02408,92384.0,92383.0,0.002]
[1765516341911,0.25646952,92384.0,92382.0,0.00023063]
[1765516342138,0.0159,92383.0,92382.0,0.00023063]
[1765516342293,0.0169,92383.0,92382.0,0.00223063]
[1765516342495,0.001,92383.0,92382.0,0.00223063]
[1765516342696,0.001,92384.0,92382.0,0.00023063]
[1765516343261,0.002,92384.0,92382.0,0.00223063]
[1765516343536,0.03998,92383.0,92382.0,0.00223063]
[1765516344378,0.04098,92383.0,92382.0,0.00223063]
[1765516344630,0.0169,92383.0,92382.0,0.00223063]
[1765516345065,0.0169,92383.0,92382.0,0.00023063]
[1765516345205,0.04198,92383.0,92382.0,0.00223063]
[1765516345792,0.0179,92383.0,92382.0,0.00223063]
[1765516347030,0.002,92383.0,92382.0,0.00223063]
[1765516347467,0.002,92383.0,92382.0,0.02493063]
[1765516348017,0.002,92383.0,92382.0,0.00223063]
[1765516356420,0.04198,92383.0,92382.0,0.00223063]
[1765516356722,0.0179,92383.0,92382.0,0.00223063]
[1765516356953,0.002,92383.0,92382.0,0.00223063]
[1765516358228,0.002,92383.0,92382.0,0.21872302]
[1765516358559,0.002,92383.0,92382.0,0.00223063]
[1765516361673,0.002,92383.0,92382.0,0.21872302]
[1765516362576,0.002,92383.0,92382.0,0.00223063]
[1765516364092,0.002,92383.0,92382.0,0.02925401]
[1765516368968,0.002,92383.0,92382.0,0.00223063]
[1765516369174,0.04659451,92383.0,92382.0,0.00223063]
[1765516369491,0.002,92383.0,92382.0,0.00223063]
[1765516369787,0.14347895,92383.0,92382.0,0.00223063]
[1765516370093,0.06230451,92383.0,92382.0,0.00223063]
[1765516370294,0.002,92383.0,92382.0,0.00223063]
[1765516382518,0.01771,92383.0,92382.0,0.00223063]
[1765516382747,0.04214,92383.0,92382.0,0.00223063]
[1765516382920,0.31694642,92383.0,92382.0,0.00223063]
[1765516383121,0.30322455,92383.0,92382.0,0.00223063]
[1765516384749,0.25863004,92383.0,92382.0,0.00223063]
[1765516384922,0.23420004,92383.0,92382.0,0.00223063]
[1765516385424,0.25863004,92383.0,92382.0,0.00223063]
[1765516385829,0.23420004,92383.0,92382.0,0.00223063]
[1765516387294,0.25863004,92383.0,92382.0,0.00223063]
[1765516390326,0.04214,92383.0,92382.0,0.00223063]
[1765516390531,0.25863004,92383.0,92382.0,0.00223063]
[1765516391455,0.31864932,92383.0,92382.0,0.00223063]
[1765516392843,0.26863093,92383.0,92382.0,0.00223063]
[1765516393052,0.3501383,92383.0,92382.0,0.00223063]
[1765516393638,0.26863093,92383.0,92382.0,0.00223063]
[1765516394063,0.26763093,92383.0,92382.0,0.00223063]
[1765516394493,0.26863093,92383.0,92382.0,0.00223063]
[1765516394711,0.26763093,92383.0,92382.0,0.00023063]
[1765516394995,0.35203647,92383.0,92382.0,0.00223063]
[1765516395199,0.35103647,92383.0,92382.0,0.00223063]
[1765516395402,0.35003647,92383.0,92382.0,0.00023063]
[1765516395581,0.35603647,92383.0,92382.0,0.00023063]
[1765516395904,0.27263004,92383.0,92382.0,0.00123063]
[1765516407017,0.31722455,92383.0,92382.0,0.00123063]
[1765516408799,0.36724294,92383.0,92382.0,0.00123063]
[1765516420360,0.26115957,92351.0,92350.0,0.0004]
[1765516420555,0.34995796,92351.0,92350.0,0.0004]
[1765516420756,0.47088252,92351.0,92350.0,0.0004]
[1765516420980,0.76158252,92351.0,92350.0,0.0004]
[1765516421576,0.76158252,92351.0,92350.0,0.00051692]
[1765516421775,0.76958252,92351.0,92350.0,0.00051692]
[1765516422963,0.77958252,92351.0,92350.0,0.00051692]
[1765516424241,0.78119539,92351.0,92350.0,0.00051692]
[1765516425884,0.78119539,92351.0,92350.0,0.00143982]
[1765516427711,0.76411539,92351.0,92350.0,0.00143982]
[1765516427915,0.78119539,92351.0,92350.0,0.00143982]
[1765516434645,0.56733125,92331.0,92330.0,0.0004]
[1765516434843,0.61135125,92331.0,92330.0,0.00078979]
[1765516435116,0.63555125,92331.0,92330.0,0.00078979]
[1765516435507,0.65951125,92331.0,92330.0,0.00078979]
[1765516435813,0.78101887,92331.0,92330.0,0.00078979]
[1765516435973,0.67951125,92331.0,92330.0,0.00078979]
[1765516439802,0.92751125,92331.0,92330.0,0.00078979]
[1765516440267,0.92751125,92331.0,92330.0,0.00136682]
[1765516441619,0.91043125,92331.0,92330.0,0.00136682]
[1765516441818,1.00080181,92331.0,92330.0,0.00136682]
[1765516442594,1.00080181,92331.0,92290.0,0.01103541]
[1765516442595,0.01083447,92298.0,92293.0,0.02702338]
[1765516442776,0.0108347,92296.0,92293.0,0.02707369]
[1765516442941,0.21669646,92295.0,92293.0,0.02707369]
[1765516443137,0.0108347,92296.0,92293.0,0.02707369]
[1765516443342,0.02791447,92298.0,92293.0,0.02707369]
[1765516443541,0.02791447,92298.0,92293.0,0.03800369]
[1765516444284,0.02891447,92298.0,92295.0,0.01083482]
[1765516444503,0.001,92296.0,92295.0,0.01083482]
[1765516444649,0.02891447,92298.0,92295.0,0.01083482]
[1765516444846,0.01808,92298.0,92295.0,0.01083482]
[1765516445058,0.01808,92298.0,92296.0,0.21669411]
[1765516445259,0.01808,92298.0,92295.0,0.22753083]
[1765516445509,0.01708,92298.0,92295.0,0.22753083]
[1765516445648,0.001,92296.0,92295.0,0.22753083]
[1765516445853,0.01808,92298.0,92295.0,0.22753083]
[1765516446071,0.01083458,92297.0,92294.0,0.01083494]
[1765516446271,0.01808,92298.0,92295.0,0.22753049]
[1765516447085,0.01708,92298.0,92295.0,0.22753049]
[1765516447286,0.01808,92298.0,92295.0,0.22753049]
[1765516447484,0.001,92296.0,92295.0,0.22753049]
[1765516447936,0.01808,92298.0,92295.0,0.22753049]
[1765516448139,0.01808,92298.0,92297.0,0.00095255]
[1765516448470,0.01908,92298.0,92297.0,0.00095255]
[1765516448812,0.002,92298.0,92297.0,0.00095255]
[1765516449240,0.001,92298.0,92297.0,0.00095255]
[1765516449441,0.01708,92299.0,92297.0,0.00095255]
[1765516449661,0.01708,92299.0,92296.0,0.0108347]
[1765516450201,0.02791435,92299.0,92295.0,0.01083482]
[1765516450527,0.001,92298.0,92295.0,0.01083482]
[1765516450732,0.002,92298.0,92295.0,0.01083482]
[1765516450970,0.001,92298.0,92295.0,0.01083482]
[1765516451281,0.05311435,92299.0,92295.0,0.01083482]
[1765516451515,0.05211435,92299.0,92295.0,0.01083482]
[1765516451634,0.01183447,92298.0,92295.0,0.01083482]
[1765516451835,0.01283447,92298.0,92295.0,0.01083482]
[1765516452044,0.01083447,92298.0,92295.0,0.01083482]
[1765516453462,0.01908,92299.0,92296.0,0.0108347]
[1765516453663,0.01708,92299.0,92296.0,0.0108347]
[1765516453891,0.001,92298.0,92296.0,0.0108347]
[1765516454084,0.002,92298.0,92296.0,0.0108347]
[1765516454302,0.002,92298.0,92297.0,0.21669176]
[1765516454508,0.001,92298.0,92297.0,0.21669176]
[1765516454664,0.01708,92299.0,92297.0,0.21669176]
[1765516454865,0.01808,92299.0,92298.0,0.00092368]
[1765516455378,0.01708,92299.0,92298.0,0.00092368]
[1765516455778,0.00851,92310.0,92303.0,0.01083388]
[1765516455962,0.01708,92309.0,92307.0,0.03785679]
[1765516456586,0.01708,92309.0,92307.0,0.02702338]
[1765516456795,0.22750416,92306.0,92302.0,0.010834]
[1765516457212,0.010834,92302.0,92299.0,0.01093]
[1765516457447,0.02791364,92305.0,92299.0,0.26149957]
[1765516457906,0.02791364,92305.0,92302.0,0.010834]
[1765516458287,0.01708,92305.0,92304.0,0.01613]
[1765516459122,0.01708,92305.0,92303.0,0.21667768]
[1765516459319,0.01808,92305.0,92303.0,0.21667768]
[1765516459781,0.01908,92305.0,92303.0,0.21667768]
[1765516460074,0.01808,92305.0,92303.0,0.21667768]
[1765516460841,0.01908,92305.0,92303.0,0.21667768]
[1765516461247,0.01808,92305.0,92303.0,0.21667768]
[1765516461767,0.01908,92305.0,92303.0,0.21667768]
[1765516462004,0.01908,92305.0,92302.0,0.010834]
[1765516462205,0.0108347,92296.0,92293.0,0.01098031]
[1765516462415,0.21669646,92295.0,92293.0,5.031e-05]
[1765516462831,0.05547,92294.0,92293.0,5.031e-05]
[1765516463000,0.10167738,92294.0,92293.0,5.031e-05]
[1765516464162,0.10567738,92294.0,92293.0,5.031e-05]
[1765516464375,0.14509775,92294.0,92293.0,5.031e-05]
[1765516464602,0.15409775,92294.0,92293.0,5.031e-05]
[1765516464773,0.16109775,92294.0,92293.0,5.031e-05]
[1765516468257,0.15209775,92294.0,92293.0,5.031e-05]
[1765516468479,0.16209775,92294.0,92293.0,0.00111837]
[1765516468934,0.15509775,92294.0,92293.0,0.00111837]
[1765516469323,0.16309775,92294.0,92293.0,0.00111837]
[1765516470110,0.50381614,92294.0,92293.0,0.00111837]
[1765516470312,0.50381614,92294.0,92280.0,0.0004]
[1765516470313,0.0946129,92291.0,92280.0,0.0004]
[1765516470678,0.3853129,92281.0,92280.0,0.0004]
[1765516470800,0.4301029,92281.0,92280.0,0.0004]
[1765516470999,0.4526229,92281.0,92280.0,0.00077539]
[1765516471237,0.54339771,92281.0,92280.0,0.00077539]
[1765516471418,0.57042109,92281.0,92280.0,0.00077539]
[1765516472879,0.57942109,92281.0,92280.0,0.00077539]
[1765516473303,0.59042109,92281.0,92280.0,0.00077539]
[1765516474770,0.61744447,92281.0,92280.0,0.00077539]
[1765516474974,0.61744447,92281.0,92268.0,9e-05]
[1765516474975,0.2767768,92269.0,92268.0,9e-05]
[1765516475179,0.3194568,92269.0,92268.0,9e-05]
[1765516475378,0.3419768,92269.0,92268.0,9e-05]
[1765516475577,0.35281843,92269.0,92268.0,9e-05]
[1765516476505,0.36881843,92269.0,92268.0,9e-05]
[1765516476698,0.45940218,92269.0,92268.0,9e-05]
[1765516477312,0.45940218,92269.0,92250.0,0.0004]
[1765516477313,0.31141271,92251.0,92250.0,0.0004]
[1765516477489,0.35538271,92251.0,92250.0,0.0004]
[1765516477690,0.37790271,92251.0,92250.0,0.0004]
[1765516479578,0.39390271,92251.0,92250.0,0.0004]
[1765516480491,0.39390271,92251.0,92250.0,0.00126663]
[1765516480698,0.50385944,92251.0,92250.0,0.00126663]
[1765516480894,0.79617231,92251.0,92250.0,0.00126663]
[1765516488434,0.68621558,92251.0,92250.0,0.00126663]
[1765516489875,0.66909558,92251.0,92250.0,0.00126663]
[1765516490098,0.37839558,92251.0,92250.0,0.00126663]
[1765516490457,0.39551558,92251.0,92250.0,0.00126663]
[1765516492659,0.41728733,92251.0,92250.0,0.00126663]
[1765516494785,0.5274053,92251.0,92250.0,0.00126663]
[1765516495251,0.41728733,92251.0,92250.0,0.00126663]
[1765516495861,0.40016733,92251.0,92250.0,0.00126663]
[1765516496088,0.41728733,92251.0,92250.0,0.00126663]
[1765516500310,0.39551558,92251.0,92250.0,0.00126663]
[1765516501183,0.32837719,92251.0,92250.0,0.00126663]
[1765516501386,0.24991981,92251.0,92250.0,0.01637663]
[1765516501771,0.24991981,92251.0,92250.0,0.00126663]
[1765516502228,0.23279981,92251.0,92250.0,0.00126663]
[1765516502385,0.38873326,92251.0,92250.0,0.00126663]
[1765516504109,0.28955981,92251.0,92250.0,0.00126663]
[1765516506863,0.24991981,92251.0,92250.0,0.00126663]
[1765516508169,0.23279981,92251.0,92250.0,0.00126663]
[1765516508382,0.016,92251.0,92250.0,0.03923663]
[1765516508581,0.016,92251.0,92250.0,0.06626001]
[1765516508582,0.03312,92251.0,92250.0,0.06626001]
[1765516509176,0.016,92251.0,92250.0,0.06626001]
[1765516509375,0.03312,92251.0,92250.0,0.06626001]